bitfinex-derivatives/quotes_ETHF0:USTF0_20250421
["timestamp","ask_amount","ask_price","bid_price","bid_amount"]
[1745225438945,4.42055,1649.1,1649.0,2.2925]
[1745225439242,9.42055,1649.1,1649.0,0.0285]
[1745225439439,9.52241755,1649.1,1649.0,0.0285]
[1745225440050,9.42055,1649.1,1649.0,0.0285]
[1745225440251,9.52240434,1649.1,1649.0,0.0285]
[1745225440847,4.52240434,1649.1,1649.0,0.0285]
[1745225441745,4.42055,1649.1,1649.0,0.0285]
[1745225446952,6.03665,1649.1,1649.0,0.0285]
[1745225449951,6.03665,1649.1,1649.0,1.24133]
[1745225450150,4.7413,1649.2,1649.0,4.68853]
[1745225450347,1.21275,1649.1,1649.0,3.4757]
[1745225450546,2.95595,1649.1,1649.0,3.4757]
[1745225451153,2.95595,1649.1,1649.0,5.7397]
[1745225451947,6.16375,1649.1,1649.0,3.1573]
[1745225452354,6.16375,1649.1,1649.0,0.8933]
[1745225452551,2.95595,1649.1,1649.0,0.8933]
[1745225453360,2.95595,1649.1,1649.0,0.0285]
[1745225453562,6.16375,1649.1,1649.0,0.0285]
[1745225454163,10.05175,1649.1,1649.0,0.0285]
[1745225456554,6.84395,1649.1,1649.0,1.6539]
[1745225458159,6.84395,1649.1,1649.0,0.0285]
[1745225459462,10.05175,1649.1,1649.0,0.0285]
[1745225460662,10.05175,1649.1,1649.0,1.6703]
[1745225462365,4.951,1649.1,1649.0,1.6703]
[1745225462661,4.42055,1649.1,1649.0,1.6703]
[1745225463257,6.15595,1649.1,1649.0,1.6703]
[1745225466662,6.15595,1649.1,1649.0,0.0285]
[1745225467457,2.94815,1649.1,1649.0,0.0285]
[1745225470159,6.15595,1649.1,1649.0,0.0285]
[1745225470359,2.94815,1649.1,1649.0,0.0285]
[1745225470560,6.15595,1649.1,1649.0,0.0285]
[1745225473868,1.21297,1648.8,1648.7,5.884]
[1745225474064,4.42077,1648.8,1648.7,5.884]
[1745225474762,5.24857,1648.8,1648.7,5.884]
[1745225475069,5.24857,1648.8,1648.7,7.09705]
[1745225475569,5.24857,1648.8,1648.7,5.884]
[1745225476174,5.24857,1648.8,1648.7,1.21305]
[1745225476871,5.24857,1648.8,1648.7,2.08335]
[1745225477465,2.91763,1648.9,1648.8,1.21297]
[1745225477664,1.21297,1648.8,1648.7,2.08329]
[1745225481774,1.21291,1648.9,1648.8,1.21297]
[1745225482172,9.872,1649.4,1648.9,4.2451]
[1745225482371,1.2127,1649.2,1649.1,1.21268]
[1745225482882,2.82817,1649.3,1649.2,1.21268]
[1745225483379,1.21268,1649.2,1649.1,1.21269]
[1745225483879,2.02498,1649.2,1649.1,1.21269]
[1745225485077,1.6155,1649.3,1649.2,1.21268]
[1745225485479,2.82811,1649.3,1649.2,1.21268]
[1745225486674,1.6155,1649.3,1649.2,1.21268]
[1745225487073,3.8795,1649.3,1649.2,1.21268]
[1745225488183,1.6155,1649.3,1649.2,1.21268]
[1745225489484,2.82811,1649.3,1649.2,1.21268]
[1745225489884,8.30736,1649.4,1649.1,5.884]
[1745225490277,1.21263,1649.3,1649.2,1.21268]
[1745225490583,9.94699,1649.4,1649.2,2.08748]
[1745225491284,12.21099,1649.4,1649.2,2.08748]
[1745225491584,12.21099,1649.4,1649.2,1.48048]
[1745225493686,12.21099,1649.4,1649.2,0.8748]
[1745225493987,12.21099,1649.4,1649.2,2.08742]
[1745225494377,12.21099,1649.4,1649.3,0.8123]
[1745225496289,1.21261,1649.3,1649.2,0.8748]
[1745225496677,2.94651,1649.3,1649.2,0.8748]
[1745225497083,5.21051,1649.3,1649.2,0.8748]
[1745225497578,1.21268,1649.2,1649.1,7.5515]
[1745225497783,5.6821,1649.2,1648.8,7.09695]
[1745225497987,1.2129,1648.9,1648.8,0.8336]
[1745225498992,2.0397,1648.9,1648.8,0.8336]
[1745225500292,6.064,1648.9,1648.8,0.8336]
[1745225501095,3.8,1648.9,1648.8,0.8336]
[1745225502095,6.064,1648.9,1648.8,0.8336]
[1745225502293,6.064,1648.9,1648.8,2.04657]
[1745225503191,3.8,1648.9,1648.8,2.04657]
[1745225504999,5.98051,1649.1,1648.8,3.86597]
[1745225505190,5.98051,1649.1,1649.0,1.21283]
[1745225505590,7.73291,1649.1,1649.0,2.07713]
[1745225506197,9.99691,1649.1,1649.0,2.07713]
[1745225507197,7.73291,1649.1,1649.0,2.07713]
[1745225508793,3.887,1649.1,1649.0,2.07713]
[1745225509305,3.887,1649.1,1649.0,3.79563]
[1745225513002,2.89619,1649.2,1649.1,1.21275]
[1745225513203,3.887,1649.3,1649.2,1.21268]
[1745225513402,5.09961,1649.3,1649.2,1.21268]
[1745225513599,6.18748,1649.4,1649.3,1.21261]
[1745225513803,1.21283,1649.1,1648.9,9.0918]
[1745225514004,1.21283,1649.1,1649.0,1.2128]
[1745225515004,2.97993,1649.1,1649.0,1.2128]
[1745225515205,5.24393,1649.1,1649.0,1.2128]
[1745225516106,2.97993,1649.1,1649.0,1.2128]
[1745225517603,1.7671,1649.1,1649.0,1.2128]
[1745225517806,1.7671,1649.1,1649.0,2.9131]
[1745225518000,8.30737,1649.4,1649.3,1.21261]
[1745225518401,9.97577,1649.4,1649.3,1.21261]
[1745225521504,8.7632,1649.4,1649.3,1.21261]
[1745225521906,9.97573,1649.4,1649.3,1.21261]
[1745225522612,5.93892,1649.6,1649.5,1.21246]
[1745225522910,1.21246,1649.5,1649.4,3.77538]
[1745225523111,5.21776,1649.5,1649.4,3.77538]
[1745225523616,1.21261,1649.3,1649.2,7.09661]
[1745225523814,3.81529,1649.4,1649.3,1.21261]
[1745225524213,6.07929,1649.4,1649.3,1.21261]
[1745225525216,3.81529,1649.4,1649.3,1.21261]
[1745225525913,3.81529,1649.4,1649.3,2.84301]
[1745225526311,3.81529,1649.4,1649.3,1.21261]
[1745225527116,6.07929,1649.4,1649.3,1.21261]
[1745225530121,1.21261,1649.3,1649.2,4.54682]
[1745225530319,2.96241,1649.3,1649.2,4.54682]
[1745225531216,1.21268,1649.2,1649.1,1.21269]
[1745225531424,3.76398,1649.2,1649.1,1.21269]
[1745225532231,1.2129,1648.9,1648.8,5.884]
[1745225532521,1.21297,1648.8,1648.6,19.26944268]
[1745225532726,5.29127,1648.8,1648.6,19.26944268]
[1745225532933,1.21305,1648.7,1648.6,7.10621663]
[1745225533129,6.84885,1648.7,1648.6,7.10621663]
[1745225533730,7.70665,1648.7,1648.6,7.10621663]
[1745225535328,6.4936,1648.7,1648.6,7.10621663]
[1745225535527,3.886,1648.9,1648.6,5.89310663]
[1745225535730,1.21297,1648.8,1648.7,4.55359]
[1745225535930,1.21297,1648.8,1648.7,2.87499]
[1745225537227,1.21297,1648.8,1648.7,5.13899]
[1745225538233,1.21297,1648.8,1648.7,2.87499]
[1745225538927,6.84346,1648.9,1648.7,2.87499]
[1745225539130,5.6305,1648.9,1648.8,1.21297]
[1745225539322,6.8434,1648.9,1648.8,1.21297]
[1745225540331,5.6305,1648.9,1648.8,1.21297]
[1745225540529,6.8434,1648.9,1648.8,1.21297]
[1745225540834,3.886,1648.9,1648.8,1.21297]
[1745225541833,5.0989,1648.9,1648.8,1.21297]
[1745225542828,1.2129,1648.9,1648.7,2.87499]
[1745225543931,1.2129,1648.9,1648.7,1.662]
[1745225544135,1.6969,1649.0,1648.8,1.21296]
[1745225544334,1.21292,1648.9,1648.8,1.21296]
[1745225544635,1.21292,1648.9,1648.7,2.87499]
[1745225544835,1.21292,1648.9,1648.8,1.21297]
[1745225547038,1.21292,1648.9,1648.8,2.88607]
[1745225548837,1.21292,1648.9,1648.8,1.6731]
[1745225549339,3.2078,1648.9,1648.6,10.31398663]
[1745225549540,1.21305,1648.7,1648.6,0.00910663]
[1745225550040,2.94345,1648.7,1648.6,0.00910663]
[1745225554538,2.94345,1648.7,1648.6,1.22222663]
[1745225554740,2.94345,1648.7,1648.6,2.90582663]
[1745225555948,1.7304,1648.7,1648.6,2.90582663]
[1745225561745,1.7304,1648.7,1648.6,2.29882663]
[1745225562748,5.5219,1648.8,1648.7,1.21305]
[1745225563049,0.00910663,1648.8,1648.7,2.82375]
[1745225563350,0.00910663,1648.8,1648.7,5.08775]
[1745225563853,0.00910663,1648.8,1648.7,10.08775]
[1745225567054,0.00910663,1648.8,1648.7,15.97175]
[1745225567855,1.21285,1649.0,1648.9,1.2129]
[1745225568056,2.86535,1649.0,1648.9,1.2129]
[1745225568554,2.86535,1649.0,1648.9,2.8304]
[1745225572758,1.6525,1649.0,1648.9,2.8304]
[1745225574754,6.78624,1649.2,1649.1,1.21275]
[1745225574961,8.51804,1649.2,1649.1,1.21275]
[1745225575458,8.51804,1649.2,1649.1,2.07955]
[1745225576362,8.51804,1649.2,1649.1,1.21275]
[1745225578355,8.51798,1649.2,1649.1,1.21275]
[1745225580564,1.21279,1649.1,1649.0,1.21279]
[1745225580761,2.83979,1649.1,1649.0,1.21279]
[1745225581562,1.21285,1649.0,1648.9,1.21284]
[1745225581760,2.83985,1649.0,1648.9,1.21284]
[1745225583065,1.2129,1648.9,1648.8,1.21294]
[1745225583262,1.21297,1648.8,1648.7,9.56047]
[1745225583862,1.21285,1649.0,1648.7,11.38]
[1745225584060,1.6699,1649.0,1648.9,1.21283]
[1745225584468,1.6699,1649.0,1648.9,2.03473]
[1745225585167,2.88273,1649.0,1648.9,2.03473]
[1745225585661,1.6699,1649.0,1648.9,2.03473]
[1745225586168,2.88273,1649.0,1648.9,2.03473]
[1745225588870,1.6699,1649.0,1648.9,2.03473]
[1745225589368,2.88273,1649.0,1648.9,2.03473]
[1745225590963,2.88273,1649.0,1648.9,2.83593]
[1745225591366,3.69233,1649.0,1648.9,2.83593]
[1745225593473,2.4795,1649.0,1648.9,2.83593]
[1745225593972,3.69233,1649.0,1648.9,2.83593]
[1745225595373,2.4795,1649.0,1648.7,3.0325]
[1745225595577,2.93712,1648.9,1648.8,1.21291]
[1745225597971,6.82312,1648.9,1648.8,1.21291]
[1745225598176,9.08712,1648.9,1648.8,1.21291]
[1745225602278,6.82312,1648.9,1648.8,2.92101]
[1745225603584,3.886,1648.9,1648.8,2.92101]
[1745225603775,7.5853,1649.1,1649.0,1.21283]
[1745225604576,7.5853,1649.1,1649.0,2.82613]
[1745225609476,6.7032,1649.1,1649.0,2.82613]
[1745225609970,6.7032,1649.1,1649.0,1.6133]
[1745225610482,6.3276,1649.1,1648.8,1.21291]
[1745225610669,1.6314,1649.0,1648.7,5.884]
[1745225610874,1.2129,1648.9,1648.8,3.80252]
[1745225611081,1.6314,1649.0,1648.8,2.5896]
[1745225611487,2.84425,1649.0,1648.9,2.9225]
[1745225612779,1.6314,1649.0,1648.9,2.9225]
[1745225612986,5.93501,1649.1,1649.0,1.21283]
[1745225613286,6.77891,1649.1,1649.0,1.21283]
[1745225616284,1.21301,1648.8,1648.7,1.21301]
[1745225616486,11.83291,1649.0,1648.6,9.3168]
[1745225616683,1.21305,1648.7,1648.6,10.52986]
[1745225617188,1.21305,1648.7,1648.6,4.64586]
[1745225617388,2.89075,1648.7,1648.6,4.64586]
[1745225618188,5.15475,1648.7,1648.6,4.64586]
[1745225619180,2.89075,1648.7,1648.6,4.64586]
[1745225620488,1.6777,1648.7,1648.6,4.64586]
[1745225621191,2.89075,1648.7,1648.6,4.64586]
[1745225623194,5.09804,1648.8,1648.7,1.21305]
[1745225623383,3.885,1648.8,1648.7,2.82575]
[1745225623990,5.09797,1648.8,1648.7,1.6127]
[1745225624189,7.69727,1648.8,1648.7,1.6127]
[1745225625189,1.21305,1648.7,1648.6,1.7146]
[1745225625389,2.84195,1648.7,1648.6,1.7146]
[1745225625791,1.21312,1648.6,1648.5,2.98924663]
[1745225625989,2.84202,1648.6,1648.5,3.83434663]
[1745225626589,1.6289,1648.6,1648.5,3.83434663]
[1745225627792,2.84202,1648.6,1648.5,3.83434663]
[1745225629085,1.6289,1648.6,1648.5,3.83434663]
[1745225629388,2.84202,1648.6,1648.5,3.83434663]
[1745225631496,4.4208,1648.8,1648.7,1.21305]
[1745225632087,4.4208,1648.8,1648.7,2.85345]
[1745225633996,6.07077,1648.8,1648.7,2.85345]
[1745225634199,1.21305,1648.7,1648.6,2.86276]
[1745225634495,1.6042,1648.7,1648.6,2.86276]
[1745225634698,2.81725,1648.7,1648.6,1.21306]
[1745225636097,1.6042,1648.7,1648.6,1.21306]
[1745225636397,1.6042,1648.7,1648.6,2.86416]
[1745225637896,5.24954,1648.8,1648.7,1.21305]
[1745225638088,6.90184,1648.8,1648.7,3.70955]
[1745225638494,5.6888,1648.8,1648.7,3.70955]
[1745225638697,6.90177,1648.8,1648.6,1.21306]
[1745225638898,2.86535,1648.7,1648.6,1.21306]
[1745225640094,1.6523,1648.7,1648.6,1.21306]
[1745225640294,0.8287,1648.8,1648.7,1.21305]
[1745225640493,2.4551,1648.8,1648.7,2.09825]
[1745225642398,5.96595,1648.9,1648.7,2.09825]
[1745225642399,4.753,1648.9,1648.8,1.21297]
[1745225642590,5.9659,1648.9,1648.8,3.70787]
[1745225642791,6.3794,1648.9,1648.8,3.70787]
[1745225643100,7.5923,1648.9,1648.8,3.70787]
[1745225643398,6.3794,1648.9,1648.8,3.70787]
[1745225643999,7.5923,1648.9,1648.8,2.06917]
[1745225644196,7.5923,1648.9,1648.8,1.21297]
[1745225644392,7.5923,1648.9,1648.7,2.5579]
[1745225644393,1.21297,1648.8,1648.7,3.77089]
[1745225644597,3.63867,1648.8,1648.7,1.21299]
[1745225647202,2.4257,1648.8,1648.7,1.21299]
[1745225647398,3.63867,1648.8,1648.7,2.94629]
[1745225650302,1.21305,1648.7,1648.6,2.89129]
[1745225650503,2.91225,1648.7,1648.6,2.89129]
[1745225656506,2.91225,1648.7,1648.6,1.21309]
[1745225657400,2.91225,1648.7,1648.6,3.68129]
[1745225660900,1.6992,1648.7,1648.6,3.68129]
[1745225661506,1.21302,1648.8,1648.7,1.21305]
[1745225661708,1.21302,1648.8,1648.7,3.67575]
[1745225661902,2.95132,1648.8,1648.7,3.67575]
[1745225665804,2.95132,1648.8,1648.7,2.4627]
[1745225667400,2.95132,1648.8,1648.7,3.67575]
[1745225668317,2.95132,1648.8,1648.7,2.4627]
[1745225670414,2.95132,1648.8,1648.7,3.67575]
[1745225671516,2.95132,1648.8,1648.7,2.4627]
[1745225673107,2.95132,1648.8,1648.7,3.67575]
[1745225674916,2.95132,1648.8,1648.7,2.4627]
[1745225679021,6.83632,1648.8,1648.7,2.4627]
[1745225679619,6.83632,1648.8,1648.7,3.67575]
[1745225679818,6.83632,1648.8,1648.7,2.4627]
[1745225680224,6.83632,1648.8,1648.7,3.67575]
[1745225680424,6.83632,1648.8,1648.7,2.4627]
[1745225688230,6.83632,1648.8,1648.7,3.67575]
[1745225689320,6.83632,1648.8,1648.7,2.4627]
[1745225689930,6.83632,1648.8,1648.7,3.67575]
[1745225692324,5.09797,1648.8,1648.7,3.67575]
[1745225692530,3.885,1648.8,1648.7,3.67575]
[1745225693124,3.885,1648.8,1648.7,5.93975]
[1745225694937,6.79589,1649.0,1648.9,1.2129]
[1745225695234,3.884,1649.0,1648.9,3.4769]
[1745225695430,3.2078,1649.1,1649.0,1.21283]
[1745225695637,3.2078,1649.1,1649.0,4.62623]
[1745225696230,3.2078,1649.1,1649.0,6.89023]
[1745225697036,4.42055,1649.1,1649.0,6.89023]
[1745225697833,6.05305,1649.1,1649.0,6.89023]
[1745225698232,2.84525,1649.1,1649.0,4.62623]
[1745225698429,1.6325,1649.1,1649.0,4.62623]
[1745225698629,2.84525,1649.1,1649.0,4.62623]
[1745225698831,1.6325,1649.1,1649.0,4.62623]
[1745225701036,5.09674,1649.2,1649.0,4.62623]
[1745225701231,5.09674,1649.2,1649.1,2.82185]
[1745225701741,5.6161,1649.2,1649.1,2.82185]
[1745225701942,6.82878,1649.2,1649.1,2.82185]
[1745225702445,5.6161,1649.2,1649.1,2.82185]
[1745225709544,6.82878,1649.2,1649.1,2.82185]
[1745225709747,6.82878,1649.2,1649.1,1.21275]
[1745225711249,5.6161,1649.2,1649.1,1.21275]
[1745225711746,5.6161,1649.2,1649.1,3.68445]
[1745225715154,6.82878,1649.2,1649.1,3.68445]
[1745225716245,5.6161,1649.2,1649.1,3.68445]
[1745225719044,6.82878,1649.2,1649.1,3.68445]
[1745225724259,5.6161,1649.2,1649.1,3.68445]
[1745225725355,3.884,1649.2,1649.1,3.68445]
[1745225728653,2.84911,1649.3,1649.2,1.21268]
[1745225728847,2.84911,1649.3,1649.2,2.80638]
[1745225730059,1.6365,1649.3,1649.2,2.80638]
[1745225731356,2.4929,1649.3,1649.2,2.80638]
[1745225734065,3.70551,1649.3,1649.2,2.80638]
[1745225738471,1.21268,1649.2,1649.1,2.04602]
[1745225738672,2.80628,1649.2,1649.1,1.21272]
[1745225743371,7.9389,1649.4,1649.2,1.21261]
[1745225743571,1.21261,1649.3,1649.2,3.73401]
[1745225744470,8.53079,1649.4,1649.3,1.21261]
[1745225744665,11.73859,1649.4,1649.3,1.21261]
[1745225745172,11.73859,1649.4,1649.0,0.8677]
[1745225745373,1.7112,1649.3,1649.0,0.8677]
[1745225745565,2.92388,1649.3,1649.2,1.21268]
[1745225746967,8.8163,1649.4,1649.1,2.5452]
[1745225746968,8.8163,1649.4,1649.3,1.21261]
[1745225747176,1.7586,1649.5,1649.4,1.21253]
[1745225747370,2.97106,1649.5,1649.4,1.21253]
[1745225747770,2.97106,1649.5,1649.4,2.87093]
[1745225749271,1.7586,1649.5,1649.4,2.87093]
[1745225750668,2.97106,1649.5,1649.4,2.87093]
[1745225751775,3.883,1649.6,1649.5,1.21246]
[1745225751972,16.21621285,1649.9,1649.5,9.0918]
[1745225752174,16.21621285,1649.9,1649.8,1.21224]
[1745225752369,25.15517945,1650.0,1649.9,1.21217]
[1745225752776,1.21217,1649.9,1649.8,2.98058]
[1745225752976,2.96367,1649.9,1649.8,2.98058]
[1745225753271,22.66317945,1650.0,1649.9,1.21217]
[1745225753463,25.33203945,1650.0,1649.6,1.7039]
[1745225753664,1.21231,1649.7,1649.6,4.58382]
[1745225753871,1.21246,1649.6,1649.5,1.21245]
[1745225754066,4.62256,1649.6,1649.5,1.21245]
[1745225754773,6.145,1649.7,1649.6,1.21239]
[1745225754774,7.35736,1649.7,1649.6,1.21239]
[1745225754976,9.10886,1649.7,1649.6,1.21239]
[1745225755273,6.84486,1649.7,1649.6,1.21239]
[1745225755474,5.6325,1649.7,1649.6,1.21239]
[1745225755870,5.6325,1649.7,1649.6,2.05699]
[1745225756182,1.21239,1649.6,1649.5,1.21246]
[1745225756375,4.63639,1649.6,1649.5,1.21246]
[1745225758772,3.424,1649.6,1649.5,1.21246]
[1745225758973,1.7021,1649.6,1649.5,1.21246]
[1745225759174,1.7021,1649.6,1649.5,2.97296]
[1745225759568,3.881,1649.7,1649.6,1.21239]
[1745225759774,3.881,1649.7,1649.6,3.82619]
[1745225760071,6.80141,1649.7,1649.6,3.82619]
[1745225761383,3.881,1649.7,1649.6,3.82619]
[1745225762073,5.5862,1649.7,1649.6,3.82619]
[1745225762283,6.79851,1649.7,1649.6,3.82619]
[1745225763185,6.79851,1649.7,1649.6,2.6138]
[1745225763373,6.79851,1649.7,1649.6,3.82619]
[1745225764574,6.79851,1649.7,1649.6,1.21239]
[1745225764977,6.79851,1649.7,1649.5,2.01021]
[1745225765176,1.7324,1649.6,1649.5,3.72761]
[1745225767077,2.94479,1649.6,1649.5,3.72761]
[1745225767279,5.09337,1649.7,1649.6,1.21239]
[1745225767479,6.82577,1649.7,1649.6,2.92979]
[1745225768077,6.82577,1649.7,1649.6,1.7174]
[1745225768482,5.6134,1649.7,1649.6,2.92979]
[1745225768984,6.82571,1649.7,1649.6,2.92979]
[1745225772683,1.21241,1649.6,1649.5,1.2124]
[1745225772883,3.71461,1649.6,1649.5,1.2124]
[1745225773385,1.656,1649.6,1649.5,1.2124]
[1745225773583,1.656,1649.6,1649.5,2.8644]
[1745225774580,6.84594,1649.7,1649.6,1.21239]
[1745225774782,6.84594,1649.7,1649.6,3.68149]
[1745225775080,2.96494,1649.7,1649.6,3.68149]
[1745225775286,9.17911,1649.9,1649.8,1.21224]
[1745225775479,10.93171,1649.9,1649.8,1.21224]
[1745225775787,1.21224,1649.8,1649.7,3.70855]
[1745225775984,2.96484,1649.8,1649.7,3.70855]
[1745225777981,1.7526,1649.8,1649.7,3.70855]
[1745225778486,5.09322,1649.9,1649.8,1.21224]
[1745225778674,5.09322,1649.9,1649.8,3.78414]
[1745225779084,6.86062,1649.9,1649.8,3.78414]
[1745225781082,5.6484,1649.9,1649.8,3.78414]
[1745225782182,6.86057,1649.9,1649.8,3.78414]
[1745225783590,5.6484,1649.9,1649.8,3.78414]
[1745225784188,3.881,1649.9,1649.8,3.78414]
[1745225785391,5.5409,1649.9,1649.8,3.78414]
[1745225785892,6.75307,1649.9,1649.8,3.78414]
[1745225786489,5.5409,1649.9,1649.8,3.78414]
[1745225787294,6.75307,1649.9,1649.8,3.78414]
[1745225787695,6.75307,1649.9,1649.8,1.21224]
[1745225788993,5.5409,1649.9,1649.8,3.75354]
[1745225789693,3.881,1649.9,1649.8,3.75354]
[1745225790894,2.83715,1650.0,1649.8,3.75354]
[1745225790895,2.83715,1650.0,1649.9,1.21217]
[1745225791090,2.83715,1650.0,1649.9,2.84627]
[1745225793295,7.0868,1650.1,1650.0,1.21209]
[1745225793492,3.879,1650.1,1650.0,1.21209]
[1745225794299,5.09102,1650.1,1650.0,2.91809]
[1745225794594,5.6419,1650.1,1650.0,2.91809]
[1745225795389,6.85392,1650.1,1650.0,2.91809]
[1745225796097,9.11792,1650.1,1650.0,2.91809]
[1745225798187,6.85392,1650.1,1650.0,2.91809]
[1745225798391,3.879,1650.1,1650.0,2.91809]
[1745225799386,5.09102,1650.1,1650.0,2.91809]
[1745225800094,3.879,1650.1,1650.0,2.91809]
[1745225800796,2.838,1650.2,1650.1,1.21202]
[1745225801094,9.99992,1650.3,1650.2,1.21195]
[1745225801294,5.09092,1650.3,1650.2,2.05035]
[1745225802201,5.09092,1650.3,1650.2,1.21195]
[1745225802396,1.21195,1650.2,1650.1,1.21198]
[1745225802590,3.71415,1650.2,1650.1,1.21198]
[1745225803093,5.97815,1650.2,1650.1,1.21198]
[1745225803597,9.18595,1650.2,1650.1,1.21198]
[1745225806599,7.1004,1650.2,1650.1,1.21198]
[1745225806800,7.1004,1650.2,1650.1,3.74868]
[1745225807302,8.31235,1650.2,1650.1,3.74868]
[1745225810399,7.1004,1650.2,1650.1,3.74868]
[1745225810902,7.1004,1650.2,1650.0,0.8052]
[1745225811105,4.61212,1650.1,1650.0,2.01723]
[1745225811305,4.61212,1650.1,1650.0,1.21203]
[1745225811597,1.21209,1650.0,1649.9,3.70052]
[1745225811795,1.2123,1649.8,1649.7,1.21227]
[1745225812205,3.4763,1649.8,1649.7,1.21227]
[1745225812591,3.9032,1649.8,1649.7,1.21227]
[1745225813206,5.99694,1649.8,1649.7,1.21227]
[1745225821210,1.21231,1649.7,1649.6,0.8603]
[1745225821412,1.21246,1649.5,1649.4,4.60067]
[1745225821704,1.21253,1649.4,1649.3,4.42944663]
[1745225821910,1.7558,1649.4,1649.3,7.81764663]
[1745225822112,5.23233,1649.4,1649.3,7.81764663]
[1745225822312,4.0198,1649.4,1649.3,7.81764663]
[1745225824004,2.264,1649.4,1649.3,7.81764663]
[1745225824205,2.264,1649.5,1649.4,1.21253]
[1745225824400,2.264,1649.5,1649.4,2.89183]
[1745225824703,3.47646,1649.5,1649.4,2.89183]
[1745225825211,2.264,1649.5,1649.4,2.89183]
[1745225826314,2.83995,1649.6,1649.5,1.21246]
[1745225826514,2.83995,1649.6,1649.5,3.68706]
[1745225827112,3.8915,1649.6,1649.5,3.68706]
[1745225827515,3.47639,1649.6,1649.5,3.68706]
[1745225828717,5.16489,1649.6,1649.5,3.68706]
[1745225829308,1.21248,1649.5,1649.4,1.21247]
[1745225829508,3.72668,1649.5,1649.4,1.21247]
[1745225829811,3.72671,1649.5,1649.4,1.21253]
[1745225830314,5.99071,1649.5,1649.4,1.21253]
[1745225831217,5.99071,1649.5,1649.4,2.88943]
[1745225832917,2.264,1649.5,1649.4,2.88943]
[1745225833319,1.21244,1649.6,1649.5,1.21246]
[1745225833618,1.21244,1649.6,1649.5,3.80446]
[1745225833812,2.80544,1649.6,1649.5,3.80446]
[1745225834218,5.06944,1649.6,1649.5,3.80446]
[1745225834814,3.857,1649.6,1649.5,3.80446]
[1745225835018,5.06939,1649.6,1649.5,3.80446]
[1745225835520,3.857,1649.6,1649.5,3.80446]
[1745225835726,2.264,1649.6,1649.5,3.80446]
[1745225836227,7.64422,1649.9,1649.6,3.03091]
[1745225836422,7.64422,1649.9,1649.8,1.21224]
[1745225837135,9.90822,1649.9,1649.8,1.21224]
[1745225842335,13.11602,1649.9,1649.8,1.21224]
[1745225843135,1.21224,1649.8,1649.7,3.81734]
[1745225843326,2.94554,1649.8,1649.7,1.21224]
[1745225844134,5.20954,1649.8,1649.7,1.21224]
[1745225848435,3.9973,1649.8,1649.7,1.21224]
[1745225848636,3.9973,1649.8,1649.7,2.82344]
[1745225852138,5.20954,1649.8,1649.7,2.82344]
[1745225852730,2.264,1649.8,1649.7,2.82344]
[1745225853740,3.47624,1649.8,1649.7,2.82344]
[1745225854741,5.21084,1649.8,1649.7,2.82344]
[1745225854938,5.21084,1649.8,1649.7,6.03124]
[1745225855239,5.21084,1649.8,1649.7,1.21224]
[1745225856735,1.21231,1649.7,1649.6,2.08995]
[1745225856933,1.21239,1649.6,1649.5,4.42021]
[1745225857138,3.47639,1649.6,1649.5,4.42021]
[1745225857342,5.14589,1649.6,1649.5,3.2078]
[1745225857640,1.21246,1649.5,1649.4,4.57687]
[1745225857842,2.88196,1649.5,1649.4,4.57687]
[1745225858140,5.14596,1649.5,1649.4,4.57687]
[1745225858341,6.02916,1649.5,1649.4,4.57687]
[1745225859745,3.9335,1649.5,1649.4,4.57687]
[1745225860045,2.264,1649.5,1649.4,4.57687]
[1745225860343,3.878,1649.6,1649.5,1.21246]
[1745225860647,5.09039,1649.6,1649.5,2.92636]
[1745225861140,3.878,1649.6,1649.5,2.92636]
[1745225861345,6.142,1649.6,1649.5,2.92636]
[1745225862144,3.878,1649.6,1649.5,2.92636]
[1745225863640,3.2078,1650.1,1650.0,1.21209]
[1745225863849,8.29867,1650.4,1650.0,6.23799]
[1745225864054,6.73607,1650.4,1650.1,0.7983]
[1745225864252,6.73607,1650.4,1650.2,3.74888]
[1745225864653,2.85707,1650.3,1650.2,3.74888]
[1745225865057,1.6452,1650.3,1650.2,3.74888]
[1745225865256,3.9092,1650.3,1650.2,3.74888]
[1745225866054,3.9092,1650.3,1650.2,1.21195]
[1745225866257,1.21195,1650.2,1650.1,1.22110663]
[1745225866454,3.83795,1650.2,1650.1,1.22110663]
[1745225867147,6.10195,1650.2,1650.1,1.22110663]
[1745225867543,4.89,1650.2,1650.1,1.22110663]
[1745225867750,4.0244,1650.2,1650.1,2.98520663]
[1745225868155,1.7604,1650.2,1650.1,2.98520663]
[1745225869257,4.0244,1650.2,1650.1,2.98520663]
[1745225870757,5.23635,1650.2,1650.1,2.98520663]
[1745225871952,5.23635,1650.2,1650.1,0.00910663]
[1745225873161,8.44415,1650.2,1650.1,0.00910663]
[1745225875166,8.44415,1650.2,1650.1,1.22112663]
[1745225875865,8.44415,1650.2,1650.1,0.00910663]
[1745225876063,8.44415,1650.2,1650.1,1.22112663]
[1745225879064,5.23635,1650.2,1650.1,1.22112663]
[1745225879266,2.264,1650.2,1650.1,1.22112663]
[1745225879459,2.264,1650.2,1650.1,2.94632663]
[1745225879865,3.47595,1650.2,1650.1,2.94632663]
[1745225880261,1.21195,1650.2,1650.1,2.94632663]
[1745225881160,5.7105,1650.3,1650.2,1.21195]
[1745225881161,6.92243,1650.3,1650.2,1.21195]